bitfinex/quotes_SOLUSD_20241210
["timestamp","ask_amount","ask_price","bid_price","bid_amount"]
[1733872116732,23.902374,215.24,215.14,312.0]
[1733872116940,23.776884,215.2,215.14,312.0]
[1733872117093,20.0,215.21,215.11,9.12099094]
[1733872117423,20.0,215.21,215.11,14.26341051]
[1733872117608,20.0,215.21,215.11,14.96042657]
[1733872118207,1.5246,215.25,215.16,14.26341051]
[1733872118391,1.5246,215.25,215.17,0.6968486]
[1733872118593,7.8158,215.3,215.17,0.6968486]
[1733872119394,23.776884,215.29,215.17,0.6968486]
[1733872120005,20.0,215.26,215.25,312.0]
[1733872121398,23.776884,215.29,215.25,312.0]
[1733872122018,7.8158,215.3,215.25,312.0]
[1733872122730,20.0,215.27,215.25,312.0]
[1733872125249,23.776884,215.26,215.16,14.26341051]
[1733872125412,23.776884,215.26,215.13,22.75708668]
[1733872125822,20.0,215.23,215.13,8.49367617]
[1733872126231,20.0,215.23,215.13,22.75708668]
[1733872127524,23.776884,215.22,215.11,14.26341051]
[1733872128133,23.776884,215.22,215.19,312.0]
[1733872128939,20.0,215.23,215.14,14.26341051]
[1733872129146,20.0,215.23,215.15,14.26341051]
[1733872129334,23.776884,215.26,215.16,14.96034208]
[1733872129532,23.776884,215.26,215.17,14.26341051]
[1733872130253,23.776884,215.26,215.13,0.69689609]
[1733872130539,23.776884,215.26,215.14,14.26341051]
[1733872131114,23.776884,215.26,215.15,14.26341051]
[1733872132034,20.0,215.24,215.23,312.0]
[1733872135941,43.776884,215.24,215.23,312.0]
[1733872137319,20.0,215.24,215.23,312.0]
[1733872137927,20.0,215.27,215.18,14.26341051]
[1733872138538,1.5246,215.3,215.18,14.26341051]
[1733872138837,21.5246,215.3,215.18,14.26341051]
[1733872139232,20.0,215.26,215.18,14.26341051]
[1733872140929,20.0,215.26,215.25,312.0]
[1733872145738,20.0,215.26,215.17,14.38890051]
[1733872146331,20.0,215.26,215.18,0.69685296]
[1733872147440,20.0,215.26,215.16,6.42728]
[1733872147634,20.0,215.26,215.17,14.26341051]
[1733872148429,20.0,215.26,215.17,14.96029781]
[1733872148842,20.0,215.26,215.23,312.0]
[1733872149160,23.776884,215.25,215.23,312.0]
[1733872149457,23.776884,215.25,215.09,15.0]
[1733872149458,23.776884,215.25,215.11,0.25098]
[1733872149641,20.0,215.22,215.13,18.608878]
[1733872149841,20.0,215.22,215.12,9.1253248]
[1733872150059,20.0,215.22,215.12,27.7342028]
[1733872150230,20.0,215.22,215.12,9.1253248]
[1733872151167,20.0,215.22,215.12,14.26253903]
[1733872151651,25.294584,215.21,215.1,20.33323903]
[1733872151838,20.0,215.18,215.1,14.26253903]
[1733872152256,20.0,215.18,215.15,312.0]
[1733872153656,23.776884,215.17,215.15,312.0]
[1733872154330,23.776884,215.17,215.08,14.26253903]
[1733872155170,23.776884,215.17,215.09,14.26253903]
[1733872155362,20.0,215.14,215.09,14.26253903]
[1733872155853,20.0,215.14,215.05,25.38336797]
[1733872156070,20.0,215.14,215.08,14.26253903]
[1733872156296,20.0,215.14,215.06,14.26253903]
[1733872156572,20.0,215.1,215.04,14.26253903]
[1733872157153,20.0,215.1,215.01,18.61712]
[1733872157478,20.0,215.1,215.08,312.0]
[1733872157759,20.0,215.14,215.08,326.26253903]
[1733872157938,20.0,215.14,215.08,14.26253903]
[1733872158140,20.0,215.14,215.07,14.26253903]
[1733872158945,20.0,215.14,215.06,14.26253903]
[1733872159349,20.0,215.14,215.05,14.26253903]
[1733872160932,20.0,215.14,215.11,312.0]
[1733872163947,4.35797729,215.21,215.1,14.26253903]
[1733872164360,4.35797729,215.21,215.09,14.26253903]
[1733872165239,4.35797729,215.21,215.1,14.26253903]
[1733872165240,43.776884,215.2,215.1,14.26253903]
[1733872165440,1.5177,215.21,215.13,14.26253903]
[1733872166846,43.776884,215.2,215.17,312.0]
[1733872172743,43.776884,215.2,215.07,1.6619]
[1733872175379,43.776884,215.2,215.06,9.13080721]
[1733872175674,43.776884,215.2,215.1,312.0]
[1733872176052,0.12549,215.18,215.1,312.0]
[1733872176265,23.902374,215.18,215.1,312.0]
[1733872176490,23.776884,215.14,215.1,312.0]
[1733872177610,23.776884,215.14,215.04,15.22290721]
[1733872178577,20.0,215.11,215.04,6.0921]
[1733872178778,20.0,215.11,215.02,10.67170721]
[1733872178981,20.0,215.11,215.02,9.13080721]
[1733872179493,20.0,215.07,215.01,9.13080721]
[1733872179702,20.0,215.07,215.0,9.13080721]
[1733872179911,20.0,215.07,215.0,27.74792721]
[1733872180085,20.0,215.07,215.0,9.13080721]
[1733872180285,20.0,215.07,214.99,15.22290721]
[1733872180589,20.0,215.07,215.03,312.0]
[1733872182476,20.0,215.04,215.03,312.0]
[1733872182680,20.0,215.03,214.98,18.622388]
[1733872183211,20.0,215.03,214.95,9.13080721]
[1733872183902,23.776884,215.02,214.94,15.22290721]
[1733872185612,23.776884,215.02,214.97,312.0]
[1733872189918,23.776884,215.02,214.93,9.13080721]
[1733872190087,23.776884,214.98,214.91,18.628751]
[1733872190513,23.776884,214.98,214.9,9.13080721]
[1733872191195,23.776884,214.98,214.89,9.13080721]
[1733872191393,23.776884,214.94,214.87,1.615]
[1733872191593,23.776884,214.94,214.87,27.76240021]
[1733872191806,23.776884,214.94,214.87,9.13080721]
[1733872193007,23.776884,214.94,214.89,312.0]
[1733872194391,20.0,214.95,214.89,312.0]
[1733872195598,20.0,214.94,214.89,312.0]
[1733872195801,6.1858,214.96,214.82,1.615]
[1733872195802,20.0,214.89,214.82,1.615]
[1733872196025,20.0,214.89,214.81,9.13080721]
[1733872196315,20.0,214.93,214.81,9.13080721]
[1733872196506,20.0,214.89,214.8,9.13080721]
[1733872196711,20.0,214.89,214.78,6.0142]
[1733872196917,20.0,214.89,214.8,9.13080721]
[1733872197993,20.0,214.85,214.77,1.615]
[1733872198310,1.5812,214.88,214.76,9.13080721]
[1733872198515,20.0,214.84,214.76,9.13080721]
[1733872198719,20.0,214.84,214.8,312.0]
[1733872199230,1.5812,214.88,214.81,9.13080721]
[1733872199437,1.5812,214.88,214.8,9.13080721]
[1733872200415,1.6023,214.95,214.83,9.13080721]
[1733872200727,1.6023,214.95,214.86,9.13080721]
[1733872202015,1.6023,214.95,214.83,0.69800768]
[1733872202323,1.6023,214.95,214.88,312.0]
[1733872202526,23.776884,214.94,214.88,312.0]
[1733872202925,20.0,214.91,214.88,312.0]
[1733872203636,1.6023,214.95,214.86,14.3016716]
[1733872203934,1.6023,214.95,214.84,15.12507217]
[1733872204321,1.6023,214.95,214.83,14.3016716]
[1733872204507,1.6023,214.95,214.82,6.0609]
[1733872204508,23.776884,214.94,214.84,14.3016716]
[1733872204712,20.0,214.91,214.84,14.3016716]
[1733872204936,20.0,214.91,214.83,14.3016716]
[1733872205514,20.0,214.91,214.84,14.3016716]
[1733872206550,20.0,214.91,214.87,312.0]
[1733872207445,20.0,214.91,214.8,14.3016716]
[1733872207830,6.5767,214.93,214.79,14.3016716]
[1733872207831,20.0,214.9,214.79,14.3016716]
[1733872208359,20.0,214.9,214.78,14.3016716]
[1733872209862,20.0,214.86,214.77,14.3016716]
[1733872210372,20.0,214.86,214.77,14.3016716]
[1733872210657,20.0,214.82,214.81,312.0]
[1733872212257,1.5228,214.86,214.81,312.0]
[1733872212436,1.5228,214.92,214.81,14.3016716]
[1733872212637,1.5228,214.92,214.75,15.0]
[1733872212638,1.5228,214.92,214.82,14.3016716]
[1733872213662,1.5228,214.92,214.81,14.3016716]
[1733872213663,20.0,214.9,214.81,14.3016716]
[1733872213862,1.5228,214.92,214.82,14.3016716]
[1733872214075,1.5228,214.92,214.83,14.3016716]
[1733872214362,1.5228,214.92,214.84,14.3016716]
[1733872214563,1.5228,214.92,214.83,14.3016716]
[1733872215552,20.0,214.9,214.89,312.0]
[1733872216745,1.5586,214.97,214.87,14.3016716]
[1733872216967,1.5586,214.97,214.88,14.3016716]
[1733872218455,20.0,215.0,214.89,14.3016716]
[1733872218649,20.0,215.0,214.9,14.5526516]
[1733872219049,20.0,215.0,214.89,21.9052716]
[1733872219766,20.0,215.0,214.96,312.0]
[1733872220761,20.0,215.0,214.91,14.3016716]
[1733872220945,8.0544,215.03,214.93,14.3016716]
[1733872220946,1.5586,215.03,214.93,14.3016716]
[1733872221262,6.4958,215.08,214.92,0.94866542]
[1733872221263,8.0544,215.08,214.94,0.69763949]
[1733872221473,8.0544,215.08,214.95,14.3016716]
[1733872221693,8.0544,215.08,214.96,14.3016716]
[1733872221970,1.5586,215.08,215.0,14.3016716]
[1733872222547,1.5586,215.16,215.04,14.3016716]
[1733872223452,1.5586,215.16,215.02,14.3016716]
[1733872223774,20.0,215.15,215.06,312.0]
[1733872224376,20.0,215.11,215.06,311.0]
[1733872224560,20.0,215.11,215.04,14.6781416]
[1733872225272,1.5586,215.16,215.08,312.0]
[1733872225850,1.5586,215.16,215.04,14.6781416]
[1733872226248,1.5586,215.16,215.06,0.12549]
[1733872226446,20.0,215.15,215.06,0.25098]
[1733872227054,20.0,215.15,215.07,0.25098]
[1733872227362,1.5586,215.21,215.08,14.5526516]
[1733872227686,2.72041741,215.2,215.08,14.5526516]
[1733872228381,2.72041741,215.2,215.08,0.25098]
[1733872228587,1.5586,215.21,215.08,0.25098]
[1733872228761,1.5586,215.21,215.13,312.0]
[1733872228977,20.0,215.2,215.13,312.0]
[1733872229491,20.0,215.2,215.08,14.5526516]
[1733872231094,20.0,215.16,215.05,0.12549]
[1733872232094,20.0,215.16,215.05,14.5526516]
[1733872232599,20.0,215.16,215.09,312.0]
[1733872234170,20.0,215.2,215.09,14.4271616]
[1733872234393,20.0,215.2,215.1,0.12549]
[1733872235073,20.0,215.2,215.09,0.25098]
[1733872235391,20.0,215.2,215.09,0.37647]
[1733872235774,20.0,215.16,215.07,0.12549]
[1733872236471,20.0,215.16,215.07,0.37647]
[1733872236676,20.0,215.2,215.07,14.6781416]
[1733872237195,20.0,215.2,215.13,312.0]
[1733872247208,20.0,215.2,215.07,9.50853544]
[1733872250213,20.0,215.2,215.13,312.0]
[1733872252223,20.0,215.19,215.13,312.0]
[1733872260825,3.44439135,215.21,215.0,21.0806]
[1733872260826,20.0,215.15,215.0,21.0806]
[1733872261018,20.0,215.15,215.01,0.69734248]
[1733872261329,20.0,215.15,215.03,0.25098]
[1733872261502,20.0,215.15,215.03,9.25755544]
[1733872261706,20.0,215.15,215.04,9.82938833]
[1733872263112,20.0,215.15,215.05,0.25098]
[1733872263320,23.776884,215.14,215.02,0.12549]
[1733872263521,23.776884,215.14,215.02,9.25755544]
[1733872263721,23.776884,215.14,215.07,312.0]
[1733872265635,23.776884,215.14,215.03,9.13206544]
[1733872265927,1.5586,215.21,215.04,10.2058743]
[1733872265928,23.776884,215.19,215.04,10.2058743]
[1733872266129,20.0,215.16,215.05,9.13206544]
[1733872266438,20.0,215.16,215.06,10.20581618]
[1733872266941,20.0,215.16,215.06,1.07375074]
[1733872267365,20.0,215.16,215.06,0.37647]
[1733872267834,20.0,215.16,215.05,0.12549]
[1733872268134,20.0,215.12,215.01,9.13206544]
[1733872268342,21.5423,215.12,215.0,6.0806]
[1733872268547,20.0,215.11,215.0,15.21266544]
[1733872268748,20.0,215.11,215.05,312.0]
[1733872269717,23.776884,215.1,215.05,312.0]
[1733872269915,20.0,215.07,214.93,16.70996544]
[1733872270141,20.0,215.03,214.93,7.5779]
[1733872270340,20.0,215.03,214.93,6.0049]
[1733872271941,20.0,215.03,214.94,9.38304544]
[1733872272116,20.0,215.03,214.94,9.25755544]
[1733872272638,20.0,215.03,214.96,0.12549]
[1733872272834,8.8138688,215.12,215.02,312.0]
[1733872273155,0.25098,215.11,215.02,312.0]
[1733872273511,8.8138688,215.12,214.96,0.12549]
[1733872273512,8.8138688,215.12,214.97,0.25098]
[1733872273738,3.37431338,215.12,214.98,9.13206544]
[1733872274123,23.776884,215.11,214.98,0.12549]
[1733872274524,2.74375566,215.1,214.98,0.12549]
[1733872275040,20.0,215.08,214.98,0.12549]
[1733872275629,20.0,215.08,214.95,0.12549]
[1733872275829,20.0,215.04,214.95,0.12549]
[1733872276643,20.0,215.04,214.99,312.0]
[1733872277031,20.0,215.04,214.94,0.37647]
[1733872277241,20.0,215.04,214.94,9.50853544]
[1733872277535,20.0,215.04,214.95,9.82966711]
[1733872277751,23.776884,215.08,214.96,0.37647]
[1733872277943,20.0,215.05,214.96,0.37647]
[1733872278117,20.0,215.05,214.96,9.50853544]
[1733872278541,23.776884,215.09,214.97,9.13206544]
[1733872278738,23.776884,215.09,214.98,0.12549]
[1733872278937,3.37431338,215.12,215.01,0.12549]
[1733872279122,1.5423,215.12,215.01,0.12549]
[1733872280441,20.0,215.11,215.01,0.12549]
[1733872282123,1.5423,215.12,215.03,0.12549]
[1733872282324,1.5423,215.12,215.05,0.12549]
[1733872284631,1.5423,215.12,214.99,0.69734199]
[1733872284955,20.0,215.08,214.98,0.12549]
[1733872285264,20.0,215.08,214.98,9.13206544]
[1733872285562,20.0,215.08,214.98,0.69746734]
[1733872286141,20.0,215.08,214.98,9.82953278]
[1733872286751,20.0,215.08,214.99,9.25755544]
[1733872289866,20.0,215.08,215.05,312.0]
[1733872290241,1.5423,215.12,215.03,9.13206544]
[1733872290469,1.5423,215.12,215.02,0.12549]
[1733872291974,1.5423,215.12,215.01,0.12549]
[1733872293469,1.5423,215.12,215.05,312.0]
[1733872294177,23.776884,215.11,215.05,312.0]
[1733872294362,20.0,215.08,215.05,312.0]
[1733872296771,1.5423,215.12,215.02,0.12549]
[1733872297082,1.5423,215.12,215.02,9.25755544]
[1733872297379,1.5423,215.12,215.03,9.13206544]
[1733872298245,20.0,215.08,214.99,0.12549]
[1733872298462,20.0,215.08,214.97,9.13206544]
[1733872299052,20.0,215.08,214.98,9.13206544]
[1733872299863,20.0,215.08,215.03,312.0]
[1733872300464,20.0,215.08,214.96,0.12549]
[1733872300465,23.776884,215.07,214.95,9.13206544]
[1733872300666,23.776884,215.03,214.92,1.5542]
[1733872300846,23.776884,215.03,214.91,9.13206544]
[1733872300847,25.385984,215.03,214.91,9.13206544]
[1733872301052,25.385984,215.03,214.88,0.69768133]
[1733872301053,25.385984,215.03,214.89,0.25098]
[1733872301254,20.0,215.0,214.91,9.13206544]
[1733872301465,20.0,215.0,214.91,0.25098]
[1733872302291,20.0,215.0,214.92,0.12549]
[1733872302873,20.0,215.0,214.9,9.13206544]
[1733872303261,20.0,215.0,214.91,0.12549]
[1733872303572,20.0,215.0,214.97,312.0]
[1733872303967,20.0,215.0,214.88,9.13206544]
[1733872304888,20.0,215.0,214.89,9.25755544]
[1733872305061,20.0,215.0,214.9,9.13206544]
[1733872305252,20.0,215.0,214.91,0.12549]
[1733872306773,20.0,215.0,214.95,312.0]
[1733872307278,20.0,215.0,214.91,0.12549]
[1733872308254,20.0,215.0,214.89,0.12549]
[1733872308556,23.776884,214.99,214.88,0.12549]
[1733872308759,23.776884,214.99,214.88,9.25755544]
[1733872308976,20.0,215.0,214.89,9.38304544]
[1733872309163,20.0,215.0,214.9,9.25755544]
[1733872310283,20.0,215.0,214.96,312.0]
[1733872311671,20.0,215.0,214.91,9.13206544]
[1733872311672,20.0,215.0,214.92,0.37647]
[1733872312489,20.0,215.0,214.9,9.13206544]
[1733872312771,20.0,215.0,214.89,9.25755544]
[1733872312979,20.0,215.0,214.9,0.25098]
[1733872313282,20.0,215.0,214.91,0.12549]
[1733872314662,20.0,215.0,214.95,312.0]
[1733872317377,20.0,215.0,214.91,9.25755544]
[1733872317577,20.0,215.0,214.93,0.12549]
[1733872318700,1.6091,215.03,214.95,0.12549]
[1733872318995,1.6226,215.08,214.97,0.12549]
[1733872320089,20.0,215.06,214.97,0.12549]
[1733872320281,20.0,215.06,215.02,312.0]
[1733872321887,20.0,215.06,214.98,0.12549]
[1733872322093,20.0,215.06,214.98,9.25755544]
[1733872322274,1.6226,215.08,215.0,0.12549]
[1733872322991,1.55299247,215.08,215.0,0.12549]
[1733872323289,1.55299247,215.08,214.99,0.25098]
[1733872323992,7.2715688,215.14,215.02,9.13206544]
[1733872324288,23.776884,215.14,215.03,9.13206544]
[1733872324487,6.3982,215.15,215.04,9.13206544]
[1733872324694,7.2715688,215.19,215.06,9.13206544]
[1733872324900,20.94133761,215.2,215.06,9.13206544]
[1733872324901,13.6697688,215.2,215.11,312.0]
[1733872325077,6.3982,215.2,215.11,312.0]
[1733872325698,6.3982,215.2,215.07,9.25755544]
[1733872325904,6.3982,215.2,215.03,8.0536]
[1733872325905,1.6226,215.19,215.05,9.13206544]
[1733872326122,1.6226,215.19,215.04,9.13206544]
[1733872326414,0.25098,215.17,215.0,9.82935945]
[1733872326571,20.0,215.15,215.0,9.82935945]
[1733872326768,23.776884,215.14,215.0,9.82935945]
[1733872326971,20.0,215.11,215.02,9.25755544]
[1733872327193,20.0,215.17,215.03,9.13206544]
[1733872327493,20.0,215.13,215.04,9.82934601]
[1733872327696,20.0,215.13,215.05,9.50853544]
[1733872327871,23.776884,215.18,215.06,0.69722421]
[1733872328071,6.3982,215.2,215.06,0.69722421]
[1733872328270,6.3982,215.2,215.04,0.12549]
[1733872328483,6.3982,215.2,215.04,0.37647]
[1733872328797,6.3982,215.2,215.13,312.0]
[1733872329980,6.3982,215.2,215.0,9.13206544]
[1733872330297,20.0,215.15,215.03,0.12549]
[1733872330598,20.0,215.15,215.05,0.12549]
[1733872330890,20.0,215.15,215.04,0.25098]
[1733872331482,20.0,215.15,215.05,0.69729607]
[1733872332473,20.0,215.15,215.04,0.69730056]
[1733872332673,20.0,215.15,215.03,0.12549]
[1733872332674,23.776884,215.14,215.02,0.37647]
[1733872332881,20.0,215.11,215.01,0.69734275]
[1733872333081,20.0,215.11,215.04,312.0]
[1733872333489,23.776884,215.1,214.98,8.0536]
[1733872333701,1.6226,215.12,214.99,0.69747084]
[1733872333876,1.6226,215.12,215.0,0.25098]
[1733872336488,1.6226,215.12,215.06,312.0]
[1733872341389,20.0,215.08,215.06,312.0]
[1733872342786,23.776884,215.11,215.06,312.0]
[1733872342787,1.6226,215.12,215.06,312.0]
[1733872343101,1.6226,215.12,214.99,0.37647]
[1733872343309,1.6226,215.12,215.01,0.37647]
[1733872343513,1.6226,215.12,215.02,0.69734904]
[1733872344213,20.0,215.17,215.03,0.25098]
[1733872344509,1.6073,215.16,215.03,0.25098]
[1733872344682,1.6073,215.16,215.04,0.6972879]
[1733872345184,1.6073,215.16,215.06,0.12549]
[1733872345390,6.3982,215.2,215.08,0.12549]
[1733872345619,6.3982,215.2,215.08,0.82259682]
[1733872346127,1.6073,215.21,215.08,0.82259682]
[1733872346128,1.6073,215.21,215.16,312.0]
[1733872346593,1.6073,215.21,215.1,0.12549]
[1733872346787,1.6073,215.21,215.11,0.25098]
[1733872346996,1.6073,215.21,215.12,0.69700925]
[1733872347489,1.6073,215.21,215.13,0.37647]
[1733872347893,20.0,215.22,215.13,1.07344281]
[1733872348809,1.6073,215.26,215.13,1.07344281]
[1733872349698,1.6073,215.26,215.2,312.0]
[1733872351302,1.6073,215.26,215.13,0.37647]
[1733872353485,20.0,215.22,215.1,0.69703163]
[1733872353710,20.0,215.22,215.08,0.69710968]
[1733872353903,20.0,215.18,215.08,0.69710968]
[1733872354206,20.0,215.18,215.12,312.0]
[1733872356193,21.5058,215.18,215.06,6.5456]
[1733872356402,20.0,215.14,215.02,9.82931873]
[1733872356672,21.5058,215.18,215.02,9.82931873]
[1733872356988,20.0,215.14,215.03,0.25098]
[1733872357293,20.0,215.14,215.04,0.69729145]
[1733872359202,20.0,215.14,215.11,312.0]
[1733872359719,20.0,215.14,215.04,0.12549]
[1733872359900,20.0,215.14,215.04,0.82278457]
[1733872361511,1.5058,215.18,215.06,0.12549]
[1733872361712,1.5058,215.18,215.06,0.69718524]
[1733872361928,1.5058,215.18,215.03,0.12549]
[1733872362129,1.5058,215.18,215.04,0.69728173]
[1733872362620,1.5058,215.18,215.05,0.37647]
[1733872362825,1.5058,215.18,215.12,312.0]
[1733872363006,23.776884,215.17,215.12,312.0]
[1733872363412,20.0,215.14,215.02,0.37647]
[1733872363706,20.0,215.14,215.03,0.697321]
[1733872364528,20.0,215.14,215.02,0.12549]
[1733872364529,20.0,215.14,215.02,0.82285029]
[1733872366523,20.0,215.14,215.12,312.0]
[1733872366939,20.0,215.14,215.02,0.12549]
[1733872367443,20.0,215.14,215.02,0.37647]
[1733872368721,1.5058,215.18,215.08,0.12549]
[1733872368921,1.5058,215.18,215.09,0.69717256]
[1733872369538,6.5511,215.22,215.1,0.37647]
[1733872369759,6.5511,215.22,215.11,0.69702726]
[1733872369963,6.5511,215.22,215.19,312.0]
[1733872370824,20.0,215.2,215.19,312.0]
[1733872371018,20.0,215.19,215.07,0.12549]
[1733872371537,20.0,215.19,215.08,0.69720912]
[1733872373161,20.0,215.19,215.09,0.37647]
[1733872373349,20.0,215.19,215.1,0.69710878]
[1733872373955,20.0,215.19,215.17,312.0]
[1733872375348,20.0,215.19,215.08,0.25098]
[1733872377660,20.0,215.18,215.08,0.25098]
[1733872378373,20.0,215.18,215.13,312.0]
[1733872380769,20.0,215.18,215.08,0.25098]
[1733872380987,20.0,215.18,215.03,0.69718616]
[1733872380988,20.0,215.14,215.03,0.69718616]
[1733872381470,20.0,215.14,215.01,8.74391714]
[1733872382055,20.0,215.14,215.02,0.25098]
[1733872383162,20.0,215.14,215.01,0.69731714]
[1733872383373,20.0,215.1,214.98,9.13206544]
[1733872383553,20.0,215.1,215.05,312.0]
[1733872384354,20.0,215.1,214.96,6.5475]
[1733872384547,20.0,215.1,214.97,0.25098]
[1733872385286,20.0,215.1,214.96,7.24503467]
[1733872385452,23.776884,215.09,214.96,7.24503467]
[1733872385777,20.0,215.06,214.97,0.12549]
[1733872385955,20.0,215.06,214.95,0.12549]
[1733872386366,20.0,215.06,214.94,0.6975922]
[1733872386549,20.0,215.06,214.91,6.1404]
[1733872386754,20.0,215.06,214.92,0.25098]
[1733872387366,20.0,215.06,215.0,312.0]
[1733872390582,23.776884,215.05,215.0,312.0]
[1733872390881,20.0,215.06,215.0,312.0]
[1733872391289,1.6486,215.07,215.0,312.0]
[1733872393476,1.6486,215.07,214.93,0.25098]
[1733872393671,1.6486,215.07,214.95,0.12549]
[1733872394578,1.6486,215.07,214.94,0.25098]
[1733872394986,1.6486,215.07,214.95,0.12549]
[1733872395286,1.6486,215.07,214.96,0.25098]
[1733872395507,1.6486,215.07,214.93,0.12549]
[1733872395668,1.6486,215.07,214.93,0.25098]
[1733872395866,1.6486,215.07,214.94,0.82312245]
[1733872396270,1.6486,215.07,215.01,312.0]
[1733872399196,20.0,215.03,215.01,312.0]
[1733872399984,20.0,214.99,214.91,6.1404]
[1733872400188,20.0,214.99,214.86,6.208]
[1733872400489,20.0,214.99,214.8,15.0]
[1733872400490,20.0,214.95,214.81,6.90586306]
[1733872400674,20.0,214.95,214.82,0.25098]
[1733872401284,20.0,214.95,214.81,16.0379285]
[1733872401472,20.0,214.95,214.81,6.90586306]
[1733872402222,20.0,214.91,214.81,6.90586306]
[1733872402400,20.0,214.91,214.82,0.12549]
[1733872402809,20.0,214.91,214.89,312.0]
[1733872403615,1.5412,214.99,214.89,312.0]
[1733872403819,20.0,214.95,214.89,312.0]
[1733872405294,20.0,214.91,214.81,6.208]
[1733872405525,20.0,214.91,214.76,6.208]
[1733872405710,1.5412,214.9,214.76,6.208]
[1733872405902,1.5412,214.9,214.77,0.25098]
[1733872406390,1.5412,214.9,214.79,0.12549]
[1733872408397,1.5412,214.9,214.84,312.0]
[1733872408791,1.5412,214.9,214.8,0.25098]
[1733872408992,1.5412,214.9,214.81,0.12549]
[1733872411598,20.0,214.91,214.81,0.12549]
[1733872411804,20.0,214.91,214.88,312.0]
[1733872412542,20.0,214.91,214.81,0.12549]
[1733872415433,20.0,214.91,214.88,312.0]
[1733872417225,20.0,214.91,214.81,0.12549]
[1733872420349,20.0,214.91,214.89,312.0]
[1733872422715,20.0,214.91,214.76,6.208]
[1733872422915,20.0,214.91,214.78,23.902374]
[1733872423543,20.0,214.91,214.76,6.208]
[1733872423729,1.75608,214.9,214.73,9.13206544]
[1733872424120,1.75608,214.9,214.74,0.25098]
[1733872424324,1.75608,214.9,214.73,9.13206544]
[1733872424745,1.75608,214.9,214.74,0.25098]
[1733872425243,26.1248,214.86,214.71,6.3039]
[1733872425444,0.12549,214.85,214.71,6.3039]
[1733872425752,1.5051,214.84,214.68,9.13206544]
[1733872425938,20.0,214.83,214.69,0.12549]
[1733872426252,20.0,214.79,214.66,6.3039]
[1733872426640,0.12549,214.82,214.66,6.3039]
[1733872426950,20.0,214.79,214.66,6.3039]
[1733872427135,20.0,214.79,214.66,7.00248513]
[1733872428125,20.0,214.79,214.67,0.12549]
[1733872428348,20.12549,214.82,214.66,7.00245716]
[1733872428524,20.0,214.79,214.66,16.1345226]
[1733872428844,7.6299,214.77,214.65,0.5535441]
[1733872429038,20.0,214.74,214.65,0.5535441]
[1733872429952,20.0,214.7,214.65,0.5535441]
[1733872430142,20.0,214.7,214.5,7.8436]
[1733872430143,20.0,214.66,214.5,7.8436]
[1733872430552,20.0,214.66,214.51,0.25098]
[1733872430737,1.5051,214.64,214.5,6.3039]
[1733872430936,1.5051,214.64,214.47,9.13206544]
[1733872431137,1.5051,214.64,214.47,14.34765849]
[1733872431355,0.5,214.63,214.45,20.65155849]
[1733872431858,20.0,214.58,214.49,312.0]
[1733872432057,0.5,214.57,214.49,312.0]
[1733872432240,20.0,214.55,214.49,312.0]
[1733872432441,0.5,214.54,214.49,312.0]
[1733872432962,20.0,214.55,214.45,0.25098]